[Event "Titled Tuesday Blitz December 06 Late 2022"]
[White "Bas Mas, Jose Joaquin"]
[Black "Calcada, Lucas Galvan"]
[WhiteFideId "22219064"]
[BlackFideId "22746099"]
[WhiteElo "2233"]
[BlackElo "1523"]
[Result "1-0"]
[Round "05"]
[TimeControl "180+1"]
[Date "2022.12.07"]
[WhiteClock "0:01:16"]
[BlackClock "0:00:02"]

1. e4 {[%clk 0:03:00]}  c5 {[%clk 0:02:53]} 2. Nc3 {[%clk 0:03:00]}  Nc6 {[%clk 0:02:51]} 3. Bb5 {[%clk 0:02:59]}  Qc7 {[%clk 0:02:48]} 4. Bxc6 {[%clk 0:02:58]}  dxc6 {[%clk 0:02:47]} 5. d3 {[%clk 0:02:57]}  e5 {[%clk 0:02:41]} 6. Nge2 {[%clk 0:02:47]}  Be7 {[%clk 0:02:41]} 7. O-O {[%clk 0:02:46]}  Nf6 {[%clk 0:02:39]} 8. a4 {[%clk 0:02:45]}  Nd7 {[%clk 0:02:31]} 9. f4 {[%clk 0:02:44]}  Bf6 {[%clk 0:02:26]} 10. f5 {[%clk 0:02:40]}  O-O {[%clk 0:02:23]} 11. g4 {[%clk 0:02:40]}  Qd8 {[%clk 0:02:05]} 12. Be3 {[%clk 0:02:34]}  Bg5 {[%clk 0:02:03]} 13. Qd2 {[%clk 0:02:33]}  h6 {[%clk 0:01:58]} 14. Bxg5 {[%clk 0:02:32]}  Qxg5 {[%clk 0:01:56]} 15. Qxg5 {[%clk 0:02:30]}  hxg5 {[%clk 0:01:55]} 16. Nd1 {[%clk 0:02:25]}  f6 {[%clk 0:01:54]} 17. Ne3 {[%clk 0:02:24]}  b6 {[%clk 0:01:51]} 18. c3 {[%clk 0:02:15]}  Rd8 {[%clk 0:01:32]} 19. Rfd1 {[%clk 0:02:13]}  Ba6 {[%clk 0:01:29]} 20. Kf2 {[%clk 0:02:08]}  Nf8 {[%clk 0:01:25]} 21. Nc1 {[%clk 0:02:07]}  Rd7 {[%clk 0:01:22]} 22. c4 {[%clk 0:02:03]}  Rad8 {[%clk 0:01:20]} 23. a5 {[%clk 0:01:57]}  b5 {[%clk 0:01:18]} 24. b3 {[%clk 0:01:57]}  b4 {[%clk 0:01:07]} 25. Ra2 {[%clk 0:01:52]}  Kf7 {[%clk 0:01:05]} 26. Kg3 {[%clk 0:01:49]}  Rd6 {[%clk 0:01:02]} 27. Rad2 {[%clk 0:01:45]}  Nh7 {[%clk 0:01:00]} 28. Ne2 {[%clk 0:01:40]}  R6d7 {[%clk 0:01:00]} 29. Ng1 {[%clk 0:01:40]}  Rd6 {[%clk 0:00:58]} 30. Nf3 {[%clk 0:01:40]}  R6d7 {[%clk 0:00:57]} 31. Nc2 {[%clk 0:01:38]}  Rd6 {[%clk 0:00:55]} 32. Nce1 {[%clk 0:01:38]}  R6d7 {[%clk 0:00:48]} 33. Rg2 {[%clk 0:01:37]}  Rd6 {[%clk 0:00:46]} 34. Rdd2 {[%clk 0:01:37]}  Bc8 {[%clk 0:00:43]} 35. Rdf2 {[%clk 0:01:34]}  a6 {[%clk 0:00:41]} 36. Rf1 {[%clk 0:01:33]}  R8d7 {[%clk 0:00:39]} 37. Rh1 {[%clk 0:01:32]}  Rd8 {[%clk 0:00:35]} 38. h4 {[%clk 0:01:32]}  gxh4+ {[%clk 0:00:30]} 39. Rxh4 {[%clk 0:01:31]}  Nf8 {[%clk 0:00:29]} 40. Rgh2 {[%clk 0:01:29]}  R8d7 {[%clk 0:00:27]} 41. Rh8 {[%clk 0:01:27]}  Rd8 {[%clk 0:00:25]} 42. Rh1 {[%clk 0:01:26]}  Bb7 {[%clk 0:00:25]} 43. g5 {[%clk 0:01:24]}  Bc8 {[%clk 0:00:23]} 44. g6+ {[%clk 0:01:21]}  Ke8 {[%clk 0:00:18]} 45. Rg8 {[%clk 0:01:19]}  R6d7 {[%clk 0:00:18]} 46. Rhh8 {[%clk 0:01:19]}  Ke7 {[%clk 0:00:03]} 47. Rxg7+ {[%clk 0:01:18]}  Kd6 {[%clk 0:00:04]} 48. Rxd7+ {[%clk 0:01:16]}  Bxd7 {[%clk 0:00:02]} 49. g7 {[%clk 0:01:16]} 1-0


[Site "https://www.chess.com"]

[Event "Titled Tuesday Blitz December 06 Late 2022"]
[White "Bogaudinov, Rushan"]
[Black "Lewicki, Miroslaw"]
[WhiteFideId "4129288"]
[BlackFideId "1113380"]
[WhiteElo "2028"]
[BlackElo "2191"]
[Result "0-1"]
[Round "05"]
[TimeControl "180+1"]
[Date "2022.12.07"]
[WhiteClock "0:00:07"]
[BlackClock "0:00:23"]

1. d4 {[%clk 0:03:00]}  b6 {[%clk 0:02:59]} 2. Nf3 {[%clk 0:02:59]}  Bb7 {[%clk 0:02:59]} 3. g3 {[%clk 0:02:59]}  g6 {[%clk 0:02:59]} 4. Bg2 {[%clk 0:02:59]}  Bg7 {[%clk 0:03:00]} 5. O-O {[%clk 0:02:59]}  Nf6 {[%clk 0:03:00]} 6. Re1 {[%clk 0:02:57]}  O-O {[%clk 0:03:00]} 7. c4 {[%clk 0:02:57]}  d6 {[%clk 0:02:57]} 8. Nc3 {[%clk 0:02:57]}  Nbd7 {[%clk 0:02:57]} 9. Bf4 {[%clk 0:02:54]}  Re8 {[%clk 0:02:55]} 10. Qd2 {[%clk 0:02:41]}  e5 {[%clk 0:02:54]} 11. dxe5 {[%clk 0:02:37]}  dxe5 {[%clk 0:02:53]} 12. Bh6 {[%clk 0:02:34]}  e4 {[%clk 0:02:45]} 13. Bxg7 {[%clk 0:02:29]}  Kxg7 {[%clk 0:02:40]} 14. Nd4 {[%clk 0:02:27]}  Ne5 {[%clk 0:02:35]} 15. Rad1 {[%clk 0:02:15]}  Nxc4 {[%clk 0:02:34]} 16. Qc1 {[%clk 0:02:09]}  Nd6 {[%clk 0:02:21]} 17. Ncb5 {[%clk 0:02:01]}  Nd5 {[%clk 0:02:07]} 18. h4 {[%clk 0:01:52]}  c5 {[%clk 0:02:02]} 19. Nxd6 {[%clk 0:01:50]}  Qxd6 {[%clk 0:02:01]} 20. Nc2 {[%clk 0:01:39]}  Qf6 {[%clk 0:01:47]} 21. Ne3 {[%clk 0:01:24]}  Nxe3 {[%clk 0:01:39]} 22. Qxe3 {[%clk 0:01:25]}  Qxb2 {[%clk 0:01:39]} 23. Rd7 {[%clk 0:01:25]}  Bc6 {[%clk 0:01:38]} 24. Rc7 {[%clk 0:01:11]}  Qf6 {[%clk 0:01:31]} 25. Rd1 {[%clk 0:01:04]}  Re7 {[%clk 0:01:26]} 26. Rxe7 {[%clk 0:00:56]}  Qxe7 {[%clk 0:01:26]} 27. f3 {[%clk 0:00:44]}  Rd8 {[%clk 0:01:17]} 28. Rxd8 {[%clk 0:00:42]}  Qxd8 {[%clk 0:01:16]} 29. fxe4 {[%clk 0:00:29]}  Qd1+ {[%clk 0:01:14]} 30. Kf2 {[%clk 0:00:29]}  Qa1 {[%clk 0:01:15]} 31. a3 {[%clk 0:00:28]}  Bb5 {[%clk 0:01:11]} 32. h5 {[%clk 0:00:27]}  Qd4 {[%clk 0:01:08]} 33. Qxd4+ {[%clk 0:00:25]}  cxd4 {[%clk 0:01:08]} 34. hxg6 {[%clk 0:00:24]}  Kxg6 {[%clk 0:00:58]} 35. Bh3 {[%clk 0:00:21]}  Kf6 {[%clk 0:00:57]} 36. Bf5 {[%clk 0:00:20]}  h6 {[%clk 0:00:55]} 37. e3 {[%clk 0:00:18]}  d3 {[%clk 0:00:42]} 38. Ke1 {[%clk 0:00:18]}  Ke5 {[%clk 0:00:38]} 39. Kd2 {[%clk 0:00:18]}  Bc4 {[%clk 0:00:38]} 40. Bh7 {[%clk 0:00:17]}  b5 {[%clk 0:00:37]} 41. Kc3 {[%clk 0:00:16]}  a5 {[%clk 0:00:36]} 42. Bf5 {[%clk 0:00:15]}  b4+ {[%clk 0:00:35]} 43. axb4 {[%clk 0:00:16]}  axb4+ {[%clk 0:00:36]} 44. Kd2 {[%clk 0:00:15]}  h5 {[%clk 0:00:28]} 45. Bh3 {[%clk 0:00:13]}  b3 {[%clk 0:00:28]} 46. Bg2 {[%clk 0:00:07]}  b2 {[%clk 0:00:23]} 0-1


[Site "https://www.chess.com"]

[Event "Titled Tuesday Blitz December 06 Late 2022"]
[White "Chigaev, Maksim"]
[Black "Rendle, Thomas E"]
[WhiteFideId "4108116"]
[BlackFideId "408760"]
[WhiteElo "2542"]
[BlackElo "2428"]
[Result "1-0"]
[Round "05"]
[TimeControl "180+1"]
[Date "2022.12.06"]
[WhiteClock "0:00:38"]
[BlackClock "0:00:08"]

1. Nf3 {[%clk 0:03:00]}  d6 {[%clk 0:02:57]} 2. e4 {[%clk 0:02:59]}  c5 {[%clk 0:02:54]} 3. c3 {[%clk 0:02:58]}  Nf6 {[%clk 0:02:51]} 4. g3 {[%clk 0:02:58]}  g6 {[%clk 0:02:37]} 5. Bg2 {[%clk 0:02:58]}  Bg7 {[%clk 0:02:38]} 6. O-O {[%clk 0:02:58]}  O-O {[%clk 0:02:38]} 7. Re1 {[%clk 0:02:59]}  Nc6 {[%clk 0:02:31]} 8. a4 {[%clk 0:02:59]}  Bg4 {[%clk 0:02:23]} 9. h3 {[%clk 0:02:59]}  Bxf3 {[%clk 0:02:23]} 10. Bxf3 {[%clk 0:03:00]}  Nd7 {[%clk 0:02:15]} 11. d3 {[%clk 0:02:59]}  a6 {[%clk 0:02:14]} 12. Be3 {[%clk 0:02:45]}  Rb8 {[%clk 0:02:12]} 13. h4 {[%clk 0:02:28]}  b5 {[%clk 0:02:07]} 14. axb5 {[%clk 0:02:28]}  axb5 {[%clk 0:02:07]} 15. h5 {[%clk 0:02:25]}  b4 {[%clk 0:02:06]} 16. h6 {[%clk 0:02:24]}  Bh8 {[%clk 0:02:02]} 17. d4 {[%clk 0:02:24]}  bxc3 {[%clk 0:01:28]} 18. bxc3 {[%clk 0:02:25]}  cxd4 {[%clk 0:01:28]} 19. cxd4 {[%clk 0:02:26]}  e5 {[%clk 0:01:26]} 20. d5 {[%clk 0:02:15]}  Nd4 {[%clk 0:01:25]} 21. Nd2 {[%clk 0:02:08]}  Nc5 {[%clk 0:01:23]} 22. Nc4 {[%clk 0:01:56]}  Rb4 {[%clk 0:01:10]} 23. Na5 {[%clk 0:01:45]}  Rb2 {[%clk 0:01:10]} 24. Nc6 {[%clk 0:01:38]}  Qf6 {[%clk 0:01:01]} 25. Bxd4 {[%clk 0:01:23]}  exd4 {[%clk 0:01:02]} 26. Qxd4 {[%clk 0:01:20]}  Re8 {[%clk 0:00:31]} 27. e5 {[%clk 0:01:03]}  dxe5 {[%clk 0:00:17]} 28. Qxc5 {[%clk 0:00:42]}  Rb7 {[%clk 0:00:11]} 29. Bg2 {[%clk 0:00:40]}  Qg5 {[%clk 0:00:10]} 30. d6 {[%clk 0:00:38]}  Rd7 {[%clk 0:00:10]} 31. Ne7+ {[%clk 0:00:38]}  Kf8 {[%clk 0:00:09]} 32. Bc6 {[%clk 0:00:38]}  Red8 {[%clk 0:00:08]} 33. Bxd7 {[%clk 0:00:38]} 1-0


[Site "https://www.chess.com"]

[Event "Titled Tuesday Blitz December 06 Late 2022"]
[White "Clawitter, Craig"]
[Black "Alimpic, Aleksa"]
[WhiteFideId "2023105"]
[BlackFideId "974323"]
[WhiteElo "2186"]
[BlackElo "2283"]
[Result "0-1"]
[Round "05"]
[TimeControl "180+1"]
[Date "2022.12.07"]
[WhiteClock "0:00:02"]
[BlackClock "0:00:02"]

1. e4 {[%clk 0:02:52]}  g6 {[%clk 0:02:59]} 2. d4 {[%clk 0:02:52]}  Bg7 {[%clk 0:03:00]} 3. Nc3 {[%clk 0:02:52]}  a6 {[%clk 0:02:59]} 4. Be3 {[%clk 0:02:53]}  b5 {[%clk 0:02:59]} 5. Bd3 {[%clk 0:02:52]}  Bb7 {[%clk 0:02:59]} 6. Nf3 {[%clk 0:02:52]}  d6 {[%clk 0:02:59]} 7. Qd2 {[%clk 0:02:43]}  Nd7 {[%clk 0:02:58]} 8. a4 {[%clk 0:02:39]}  c6 {[%clk 0:02:51]} 9. O-O {[%clk 0:02:30]}  Ngf6 {[%clk 0:02:49]} 10. Bh6 {[%clk 0:02:30]}  O-O {[%clk 0:02:45]} 11. h3 {[%clk 0:02:19]}  e5 {[%clk 0:02:38]} 12. Rad1 {[%clk 0:02:10]}  Re8 {[%clk 0:02:26]} 13. Bxg7 {[%clk 0:02:10]}  Kxg7 {[%clk 0:02:27]} 14. Rfe1 {[%clk 0:02:00]}  exd4 {[%clk 0:02:05]} 15. Nxd4 {[%clk 0:02:00]}  Ne5 {[%clk 0:01:45]} 16. f4 {[%clk 0:01:20]}  Nxd3 {[%clk 0:01:19]} 17. cxd3 {[%clk 0:01:20]}  b4 {[%clk 0:01:20]} 18. Nce2 {[%clk 0:01:04]}  c5 {[%clk 0:01:17]} 19. Nc2 {[%clk 0:01:00]}  d5 {[%clk 0:00:52]} 20. e5 {[%clk 0:00:58]}  Nd7 {[%clk 0:00:52]} 21. d4 {[%clk 0:00:56]}  Qb6 {[%clk 0:00:34]} 22. Kh2 {[%clk 0:00:49]}  Rac8 {[%clk 0:00:30]} 23. dxc5 {[%clk 0:00:46]}  Nxc5 {[%clk 0:00:30]} 24. Ncd4 {[%clk 0:00:43]}  Ne4 {[%clk 0:00:29]} 25. Qe3 {[%clk 0:00:42]}  Kg8 {[%clk 0:00:16]} 26. Ng3 {[%clk 0:00:35]}  Rc4 {[%clk 0:00:10]} 27. Nxe4 {[%clk 0:00:21]}  dxe4 {[%clk 0:00:10]} 28. f5 {[%clk 0:00:13]}  Rxe5 {[%clk 0:00:07]} 29. a5 {[%clk 0:00:11]}  Qc7 {[%clk 0:00:05]} 30. Qg3 {[%clk 0:00:10]}  Re8 {[%clk 0:00:02]} 31. Qxc7 {[%clk 0:00:09]}  Rxc7 {[%clk 0:00:03]} 32. Nb3 {[%clk 0:00:08]}  gxf5 {[%clk 0:00:03]} 33. Kg3 {[%clk 0:00:07]}  e3 {[%clk 0:00:02]} 34. Kf4 {[%clk 0:00:07]}  Rc2 {[%clk 0:00:02]} 35. Rxe3 {[%clk 0:00:05]}  Rxe3 {[%clk 0:00:03]} 36. Kxe3 {[%clk 0:00:06]}  Rxb2 {[%clk 0:00:04]} 37. Nc5 {[%clk 0:00:05]}  Bxg2 {[%clk 0:00:03]} 38. Rg1 {[%clk 0:00:05]}  Kf8 {[%clk 0:00:02]} 39. Nd7+ {[%clk 0:00:04]}  Ke7 {[%clk 0:00:02]} 40. Ne5 {[%clk 0:00:04]}  Be4 {[%clk 0:00:02]} 41. Nc4 {[%clk 0:00:03]}  Rb3+ {[%clk 0:00:02]} 42. Kd4 {[%clk 0:00:03]}  Rd3+ {[%clk 0:00:02]} 43. Kc5 {[%clk 0:00:02]}  b3 {[%clk 0:00:02]} 0-1


[Site "https://www.chess.com"]

[Event "Titled Tuesday Blitz December 06 Late 2022"]
[White "Corrales Jimenez, Fidel"]
[Black "Domingo Nunez, Ruben"]
[WhiteFideId "3506690"]
[BlackFideId "22245570"]
[WhiteElo "2541"]
[BlackElo "2406"]
[Result "0-1"]
[Round "05"]
[TimeControl "180+1"]
[Date "2022.12.06"]
[WhiteClock "0:00:04"]
[BlackClock "0:00:06"]

1. e4 {[%clk 0:03:00]}  c6 {[%clk 0:02:58]} 2. d4 {[%clk 0:03:00]}  g6 {[%clk 0:02:59]} 3. c4 {[%clk 0:02:59]}  Bg7 {[%clk 0:02:59]} 4. Nc3 {[%clk 0:02:59]}  d6 {[%clk 0:02:59]} 5. f4 {[%clk 0:02:58]}  a6 {[%clk 0:02:59]} 6. Nf3 {[%clk 0:02:58]}  b5 {[%clk 0:03:00]} 7. Be3 {[%clk 0:02:55]}  Nh6 {[%clk 0:02:57]} 8. h3 {[%clk 0:02:54]}  bxc4 {[%clk 0:02:57]} 9. Bxc4 {[%clk 0:02:53]}  Nd7 {[%clk 0:02:57]} 10. O-O {[%clk 0:02:53]}  d5 {[%clk 0:02:57]} 11. Bb3 {[%clk 0:02:47]}  Nf6 {[%clk 0:02:46]} 12. e5 {[%clk 0:02:47]}  Nh5 {[%clk 0:02:37]} 13. g4 {[%clk 0:02:19]}  Ng3 {[%clk 0:02:19]} 14. Rf2 {[%clk 0:02:18]}  f5 {[%clk 0:02:20]} 15. Rg2 {[%clk 0:01:56]}  fxg4 {[%clk 0:02:14]} 16. hxg4 {[%clk 0:01:56]}  Nxg4 {[%clk 0:02:13]} 17. Bc1 {[%clk 0:01:50]}  Nh5 {[%clk 0:02:07]} 18. Ba4 {[%clk 0:01:38]}  Qd7 {[%clk 0:01:12]} 19. Ng5 {[%clk 0:01:36]}  Nh6 {[%clk 0:01:07]} 20. Qb3 {[%clk 0:00:49]}  O-O {[%clk 0:01:01]} 21. Qb6 {[%clk 0:00:46]}  Bb7 {[%clk 0:00:54]} 22. Nxd5 {[%clk 0:00:46]}  Kh8 {[%clk 0:00:43]} 23. Nc3 {[%clk 0:00:40]}  Nxf4 {[%clk 0:00:40]} 24. Bxf4 {[%clk 0:00:36]}  Rxf4 {[%clk 0:00:41]} 25. Nce4 {[%clk 0:00:34]}  Raf8 {[%clk 0:00:33]} 26. Bb3 {[%clk 0:00:34]}  c5 {[%clk 0:00:26]} 27. d5 {[%clk 0:00:31]}  Bxe5 {[%clk 0:00:19]} 28. Rd1 {[%clk 0:00:27]}  Bc8 {[%clk 0:00:09]} 29. Qe6 {[%clk 0:00:19]}  Qc7 {[%clk 0:00:07]} 30. d6 {[%clk 0:00:19]}  exd6 {[%clk 0:00:07]} 31. Qd5 {[%clk 0:00:15]}  Bb7 {[%clk 0:00:07]} 32. Qe6 {[%clk 0:00:13]}  Bxe4 {[%clk 0:00:06]} 33. Nxe4 {[%clk 0:00:09]}  Rxe4 {[%clk 0:00:07]} 34. Rf2 {[%clk 0:00:05]}  Rxf2 {[%clk 0:00:05]} 35. Kxf2 {[%clk 0:00:06]}  Bd4+ {[%clk 0:00:05]} 36. Rxd4 {[%clk 0:00:05]}  Rxe6 {[%clk 0:00:06]} 37. Bxe6 {[%clk 0:00:04]}  cxd4 {[%clk 0:00:06]} 0-1


[Site "https://www.chess.com"]

[Event "Titled Tuesday Blitz December 06 Late 2022"]
[White "Cuevas Araya, Walter"]
[Black "Przybylski, Wojciech"]
[WhiteFideId "3405028"]
[BlackFideId "1117599"]
[WhiteElo "1957"]
[BlackElo "2217"]
[Result "0-1"]
[Round "05"]
[TimeControl "180+1"]
[Date "2022.12.07"]
[WhiteClock "0:00:40"]
[BlackClock "0:00:29"]

1. e4 {[%clk 0:03:00]}  e5 {[%clk 0:02:35]} 2. d4 {[%clk 0:02:59]}  exd4 {[%clk 0:02:27]} 3. c3 {[%clk 0:02:59]}  d5 {[%clk 0:02:23]} 4. exd5 {[%clk 0:02:58]}  Qxd5 {[%clk 0:02:20]} 5. cxd4 {[%clk 0:02:59]}  Nc6 {[%clk 0:02:20]} 6. Nf3 {[%clk 0:02:58]}  Bg4 {[%clk 0:02:19]} 7. Be2 {[%clk 0:02:58]}  O-O-O {[%clk 0:02:17]} 8. Nc3 {[%clk 0:02:54]}  Qh5 {[%clk 0:02:15]} 9. Be3 {[%clk 0:02:48]}  Nf6 {[%clk 0:02:12]} 10. O-O {[%clk 0:02:47]}  Bd6 {[%clk 0:02:11]} 11. h3 {[%clk 0:02:46]}  Bxh3 {[%clk 0:02:11]} 12. gxh3 {[%clk 0:02:35]}  Qxh3 {[%clk 0:02:09]} 13. Qc1 {[%clk 0:02:02]}  g5 {[%clk 0:01:55]} 14. Nxg5 {[%clk 0:01:56]}  Rhg8 {[%clk 0:01:54]} 15. f4 {[%clk 0:01:52]}  Rxg5+ {[%clk 0:01:52]} 16. Kf2 {[%clk 0:01:51]}  Rg2+ {[%clk 0:01:46]} 17. Ke1 {[%clk 0:01:51]}  Re8 {[%clk 0:01:37]} 18. Rf3 {[%clk 0:01:44]}  Qg4 {[%clk 0:01:09]} 19. Rf2 {[%clk 0:01:28]}  Qg3 {[%clk 0:01:07]} 20. Nd1 {[%clk 0:01:16]}  Ne4 {[%clk 0:00:58]} 21. Bf3 {[%clk 0:01:02]}  Bb4+ {[%clk 0:00:55]} 22. Ke2 {[%clk 0:00:59]}  Nxd4+ {[%clk 0:00:52]} 23. Kd3 {[%clk 0:00:56]}  Nxf2+ {[%clk 0:00:42]} 24. Nxf2 {[%clk 0:00:46]}  Qxf3 {[%clk 0:00:31]} 25. Kxd4 {[%clk 0:00:42]}  Rxf2 {[%clk 0:00:30]} 26. Bxf2 {[%clk 0:00:40]}  Qe4# {[%clk 0:00:29]} 0-1


[Site "https://www.chess.com"]

[Event "Titled Tuesday Blitz December 06 Late 2022"]
[White "D`Arruda, Ricardo D."]
[Black "Aghasiyev, Kamal"]
[WhiteFideId "100692"]
[BlackFideId "13402854"]
[WhiteElo "2463"]
[BlackElo "2341"]
[Result "1/2-1/2"]
[Round "05"]
[TimeControl "180+1"]
[Date "2022.12.07"]
[WhiteClock "0:00:24"]
[BlackClock "0:00:14"]

1. d4 {[%clk 0:02:58]}  Nf6 {[%clk 0:02:58]} 2. Nf3 {[%clk 0:02:58]}  e6 {[%clk 0:02:58]} 3. c4 {[%clk 0:02:57]}  d5 {[%clk 0:02:50]} 4. Nc3 {[%clk 0:02:56]}  Be7 {[%clk 0:02:49]} 5. Bg5 {[%clk 0:02:55]}  Nbd7 {[%clk 0:02:47]} 6. e3 {[%clk 0:02:54]}  h6 {[%clk 0:02:46]} 7. Bh4 {[%clk 0:02:53]}  O-O {[%clk 0:02:46]} 8. Bd3 {[%clk 0:02:53]}  c5 {[%clk 0:02:46]} 9. O-O {[%clk 0:02:49]}  b6 {[%clk 0:02:45]} 10. cxd5 {[%clk 0:02:43]}  Nxd5 {[%clk 0:02:40]} 11. Bxe7 {[%clk 0:02:41]}  Nxe7 {[%clk 0:02:35]} 12. Ne4 {[%clk 0:02:29]}  Bb7 {[%clk 0:02:30]} 13. dxc5 {[%clk 0:02:25]}  Nxc5 {[%clk 0:02:29]} 14. Nxc5 {[%clk 0:02:24]}  bxc5 {[%clk 0:02:26]} 15. Be2 {[%clk 0:02:17]}  Qb6 {[%clk 0:02:25]} 16. Qc2 {[%clk 0:02:12]}  Rac8 {[%clk 0:02:08]} 17. Ne5 {[%clk 0:02:10]}  Qc7 {[%clk 0:02:03]} 18. Nc4 {[%clk 0:02:07]}  Nd5 {[%clk 0:01:58]} 19. a3 {[%clk 0:02:05]}  Rfd8 {[%clk 0:01:42]} 20. Rfd1 {[%clk 0:02:04]}  Nb6 {[%clk 0:01:37]} 21. Rxd8+ {[%clk 0:01:49]}  Rxd8 {[%clk 0:01:37]} 22. Rd1 {[%clk 0:01:48]}  Rxd1+ {[%clk 0:01:34]} 23. Qxd1 {[%clk 0:01:49]}  Bd5 {[%clk 0:01:04]} 24. Qc2 {[%clk 0:01:40]}  Nxc4 {[%clk 0:00:55]} 25. Bxc4 {[%clk 0:01:41]}  Qb7 {[%clk 0:00:55]} 26. Bxd5 {[%clk 0:01:30]}  Qxd5 {[%clk 0:00:50]} 27. h3 {[%clk 0:01:26]}  c4 {[%clk 0:00:45]} 28. Kf1 {[%clk 0:01:24]}  f5 {[%clk 0:00:45]} 29. Ke2 {[%clk 0:01:21]}  Kh7 {[%clk 0:00:42]} 30. g4 {[%clk 0:01:15]}  h5 {[%clk 0:00:41]} 31. gxf5 {[%clk 0:01:13]}  exf5 {[%clk 0:00:41]} 32. Qc3 {[%clk 0:00:59]}  Qe4 {[%clk 0:00:41]} 33. Qd4 {[%clk 0:00:48]}  Qxd4 {[%clk 0:00:38]} 34. exd4 {[%clk 0:00:49]}  h4 {[%clk 0:00:38]} 35. Ke3 {[%clk 0:00:40]}  g5 {[%clk 0:00:37]} 36. d5 {[%clk 0:00:40]}  Kg6 {[%clk 0:00:36]} 37. f4 {[%clk 0:00:32]}  g4 {[%clk 0:00:34]} 38. hxg4 {[%clk 0:00:32]}  fxg4 {[%clk 0:00:32]} 39. d6 {[%clk 0:00:31]}  Kf7 {[%clk 0:00:30]} 40. f5 {[%clk 0:00:30]}  a5 {[%clk 0:00:25]} 41. Kf4 {[%clk 0:00:24]}  g3 {[%clk 0:00:21]} 42. Kf3 {[%clk 0:00:25]}  a4 {[%clk 0:00:20]} 43. Kg2 {[%clk 0:00:24]}  Kf6 {[%clk 0:00:19]} 44. Kh3 {[%clk 0:00:24]}  Kf7 {[%clk 0:00:19]} 45. Kg2 {[%clk 0:00:24]}  Kf6 {[%clk 0:00:18]} 46. Kh3 {[%clk 0:00:24]}  Kf7 {[%clk 0:00:14]} 47. Kg2 {[%clk 0:00:24]} 1/2-1/2


[Site "https://www.chess.com"]

[Event "Titled Tuesday Blitz December 06 Late 2022"]
[White "Danielyan, Vahe"]
[Black "Pein, Jonathan"]
[WhiteFideId "13304828"]
[BlackFideId "417092"]
[WhiteElo "2423"]
[BlackElo "2225"]
[Result "1/2-1/2"]
[Round "05"]
[TimeControl "180+1"]
[Date "2022.12.07"]
[WhiteClock "0:01:27"]
[BlackClock "0:00:07"]

1. d4 {[%clk 0:03:00]}  Nf6 {[%clk 0:02:59]} 2. c4 {[%clk 0:03:01]}  g6 {[%clk 0:02:59]} 3. Nc3 {[%clk 0:03:01]}  Bg7 {[%clk 0:03:00]} 4. e4 {[%clk 0:03:01]}  O-O {[%clk 0:03:01]} 5. Nf3 {[%clk 0:03:02]}  d6 {[%clk 0:03:01]} 6. Be2 {[%clk 0:03:02]}  e5 {[%clk 0:03:00]} 7. O-O {[%clk 0:03:02]}  exd4 {[%clk 0:02:57]} 8. Nxd4 {[%clk 0:03:03]}  Re8 {[%clk 0:02:58]} 9. f3 {[%clk 0:03:02]}  Nh5 {[%clk 0:02:58]} 10. Be3 {[%clk 0:03:01]}  f5 {[%clk 0:02:58]} 11. Qd2 {[%clk 0:02:53]}  f4 {[%clk 0:02:58]} 12. Bf2 {[%clk 0:02:52]}  Be5 {[%clk 0:02:58]} 13. Rfd1 {[%clk 0:02:51]}  c6 {[%clk 0:02:50]} 14. Rac1 {[%clk 0:02:49]}  Na6 {[%clk 0:02:49]} 15. a3 {[%clk 0:02:48]}  Nc5 {[%clk 0:02:34]} 16. b4 {[%clk 0:02:46]}  Ne6 {[%clk 0:02:35]} 17. c5 {[%clk 0:02:38]}  dxc5 {[%clk 0:02:17]} 18. Nxe6 {[%clk 0:02:36]}  Bxe6 {[%clk 0:02:16]} 19. Bxc5 {[%clk 0:02:35]}  b6 {[%clk 0:01:25]} 20. Bd4 {[%clk 0:02:31]}  Qf6 {[%clk 0:00:59]} 21. Bxe5 {[%clk 0:02:28]}  Qxe5 {[%clk 0:01:00]} 22. Qd6 {[%clk 0:02:28]}  Qg5 {[%clk 0:00:35]} 23. e5 {[%clk 0:02:25]}  Bh3 {[%clk 0:00:30]} 24. Bc4+ {[%clk 0:02:18]}  Kh8 {[%clk 0:00:30]} 25. Rd2 {[%clk 0:02:18]}  Rxe5 {[%clk 0:00:23]} 26. Ne4 {[%clk 0:02:10]}  Rxe4 {[%clk 0:00:18]} 27. fxe4 {[%clk 0:02:11]}  f3 {[%clk 0:00:16]} 28. Qd4+ {[%clk 0:02:11]}  Ng7 {[%clk 0:00:15]} 29. Rf1 {[%clk 0:02:02]}  Bxg2 {[%clk 0:00:12]} 30. Rff2 {[%clk 0:01:44]}  b5 {[%clk 0:00:10]} 31. Bb3 {[%clk 0:01:40]}  Bh3+ {[%clk 0:00:09]} 32. Kh1 {[%clk 0:01:39]}  Bg2+ {[%clk 0:00:10]} 33. Rxg2 {[%clk 0:01:39]}  fxg2+ {[%clk 0:00:10]} 34. Rxg2 {[%clk 0:01:40]}  Qc1+ {[%clk 0:00:08]} 35. Rg1 {[%clk 0:01:40]}  Qf4 {[%clk 0:00:08]} 36. Rd1 {[%clk 0:01:40]}  Qf3+ {[%clk 0:00:06]} 37. Kg1 {[%clk 0:01:40]}  Rf8 {[%clk 0:00:06]} 38. Qd3 {[%clk 0:01:35]}  Qg4+ {[%clk 0:00:06]} 39. Kh1 {[%clk 0:01:34]}  Nh5 {[%clk 0:00:06]} 40. Qc3+ {[%clk 0:01:34]}  Ng7 {[%clk 0:00:06]} 41. Qd3 {[%clk 0:01:30]}  h5 {[%clk 0:00:05]} 42. Rg1 {[%clk 0:01:29]}  Qf3+ {[%clk 0:00:03]} 43. Qxf3 {[%clk 0:01:28]}  Rxf3 {[%clk 0:00:04]} 44. Bf7 {[%clk 0:01:26]}  Rxf7 {[%clk 0:00:04]} 45. Rxg6 {[%clk 0:01:26]}  Rf1+ {[%clk 0:00:04]} 46. Kg2 {[%clk 0:01:25]}  Rc1 {[%clk 0:00:05]} 47. e5 {[%clk 0:01:26]}  Kg8 {[%clk 0:00:04]} 48. e6 {[%clk 0:01:26]}  Re1 {[%clk 0:00:05]} 49. Kf2 {[%clk 0:01:25]}  Rxe6 {[%clk 0:00:05]} 50. Rg5 {[%clk 0:01:25]}  Kf7 {[%clk 0:00:05]} 51. a4 {[%clk 0:01:25]}  bxa4 {[%clk 0:00:05]} 52. Ra5 {[%clk 0:01:26]}  Kf6 {[%clk 0:00:05]} 53. Rxa7 {[%clk 0:01:26]}  Nf5 {[%clk 0:00:04]} 54. Rxa4 {[%clk 0:01:27]}  Nd6 {[%clk 0:00:04]} 55. Ra5 {[%clk 0:01:26]}  Nb5 {[%clk 0:00:05]} 56. Ra8 {[%clk 0:01:27]}  Kg5 {[%clk 0:00:05]} 57. Rg8+ {[%clk 0:01:27]}  Rg6 {[%clk 0:00:05]} 58. Rc8 {[%clk 0:01:27]}  Rf6+ {[%clk 0:00:06]} 59. Kg3 {[%clk 0:01:27]}  h4+ {[%clk 0:00:06]} 60. Kh3 {[%clk 0:01:28]}  Rf3+ {[%clk 0:00:07]} 61. Kg2 {[%clk 0:01:27]}  Rc3 {[%clk 0:00:07]} 62. Rg8+ {[%clk 0:01:27]}  Kf5 {[%clk 0:00:08]} 63. Rh8 {[%clk 0:01:28]}  h3+ {[%clk 0:00:08]} 64. Rxh3 {[%clk 0:01:27]}  Rxh3 {[%clk 0:00:08]} 65. Kxh3 {[%clk 0:01:28]}  Nd6 {[%clk 0:00:09]} 66. Kg3 {[%clk 0:01:27]}  Ne4+ {[%clk 0:00:09]} 67. Kf3 {[%clk 0:01:26]}  Nc3 {[%clk 0:00:10]} 68. Ke3 {[%clk 0:01:25]}  Nd5+ {[%clk 0:00:10]} 69. Kd4 {[%clk 0:01:26]}  Nxb4 {[%clk 0:00:11]} 70. Kc5 {[%clk 0:01:27]}  Nd3+ {[%clk 0:00:05]} 71. Kxc6 {[%clk 0:01:27]}  Nf4 {[%clk 0:00:06]} 72. h3 {[%clk 0:01:27]}  Nxh3 {[%clk 0:00:07]} 1/2-1/2


[Site "https://www.chess.com"]